fUSD/lending_fUSD_20250720
["ID","MTS","AMOUNT","RATE_DAILY","PERIOD"]
[373553840,1753038925820,480.0,0.00030136,120]
[373553841,1753038926000,3093.65,0.00030136,120]
[373553842,1753038926232,480.0,0.00030136,120]
[373553843,1753038927283,480.0,0.00030136,120]
[373553844,1753038928248,1350.55,0.00030136,120]
[373553845,1753038929080,799.64,0.00030136,120]
[373553846,1753038929224,480.0,0.00030136,120]
[373553847,1753038929388,480.0,0.00030136,120]
[373553848,1753038929787,480.0,0.00030136,120]
[373553849,1753038931079,480.0,0.00030136,120]
[373553850,1753038931118,638.36,0.00030136,120]
[373553851,1753038931893,992.68,0.00030136,120]
[373553852,1753038932235,480.0,0.00030136,120]
[373553853,1753038934129,2220.57,0.00030136,120]
[373553854,1753038934486,480.0,0.00030136,120]
[373553855,1753038935748,423.93659842,0.00030136,120]
[373553856,1753038937047,776.8,0.00030136,120]
[373553857,1753038937189,480.0,0.00030136,120]
[373553858,1753038937552,2634.28,0.00030136,120]
[373553859,1753038937975,480.0,0.00030136,120]
[373553860,1753038938139,2207.79,0.00030136,120]
[373553861,1753038938684,746.7,0.00030136,120]
[373553862,1753038939254,480.0,0.00030136,120]
[373553863,1753038941176,763.86,0.00030136,120]
[373553864,1753038941210,440.0,0.00030136,120]
[373553865,1753038941376,480.0,0.00030136,120]
[373553866,1753038941414,1401.75,0.00030136,120]
[373553867,1753038942324,480.0,0.00030136,120]
[373553868,1753038942553,1568.67,0.00030136,120]
[373553869,1753038943427,754.15,0.00030136,120]
[373553870,1753038943639,480.0,0.00030136,120]
[373553871,1753038944481,480.0,0.00030136,120]
[373553872,1753038944516,870.51,0.00030136,120]
[373553873,1753038946268,752.02,0.00030136,120]
[373553874,1753038946308,6675.83,0.00030136,120]
[373553875,1753038947919,480.0,0.00030136,120]
[373553876,1753038947960,480.0,0.00030136,120]
[373553877,1753038948860,1798.63,0.00030136,120]
[373553878,1753038949521,8099.37,0.00030136,120]
[373553879,1753038950263,480.0,0.00030136,120]
[373553880,1753038950301,480.0,0.00030136,120]
[373553881,1753038950534,624.37,0.00030136,120]
[373553882,1753038950736,480.0,0.00030136,120]
[373553883,1753038950772,550.48,0.00030136,120]
[373553884,1753038951293,480.0,0.00030136,120]
[373553885,1753038951738,3596.64,0.00030136,120]
[373553886,1753038952311,2234.05,0.00030136,120]
[373553887,1753038952782,1612.36,0.00030136,120]
[373553888,1753038953452,480.0,0.00030136,120]
[373553889,1753038954443,480.0,0.00030136,120]
[373553890,1753038954700,1455.9,0.00030136,120]
[373553891,1753038954764,2321.71,0.00030136,120]
[373553892,1753038955216,460.0,0.00030136,120]
[373553893,1753038955657,13121.77,0.00030136,120]
[373553894,1753038957025,480.0,0.00030136,120]
[373553895,1753038957160,2658.86,0.00030136,120]
[373553896,1753038957774,480.0,0.00030136,120]
[373553897,1753038958043,1191.6,0.00030136,120]
[373553898,1753038959125,1249.39,0.00030136,120]
[373553899,1753038959543,579.18,0.00030136,120]
[373553900,1753038960572,624.17,0.00030136,120]
[373553901,1753038960619,604.24,0.00030136,120]
[373553902,1753038960932,480.0,0.00030136,120]
[373553903,1753038961014,2493.85,0.00030136,120]
[373553904,1753038962078,654.38,0.00030136,120]
[373553905,1753038962970,521.06,0.00030136,120]
[373553906,1753038963672,480.0,0.00030136,120]
[373553907,1753038964612,480.0,0.00030136,120]
[373553908,1753038965797,480.0,0.00030136,120]
[373553909,1753038965839,480.0,0.00030136,120]
[373553910,1753038968698,480.0,0.00030136,120]
[373553911,1753038968915,915.05,0.00030136,120]
[373553912,1753038969569,480.0,0.00030136,120]
[373553913,1753038969989,1165.18,0.00030136,120]
[373553914,1753038970657,542.87,0.00030136,120]
[373553915,1753038970756,480.0,0.00030136,120]
[373553916,1753038970870,480.0,0.00030136,120]
[373553917,1753038971363,713.2,0.00030136,120]
[373553918,1753038971434,2542.1,0.00030136,120]
[373553919,1753038971477,627.2,0.00030136,120]
[373553920,1753038971679,1948.57,0.00030136,120]
[373553921,1753038972115,629.12,0.00030136,120]
[373553922,1753038972166,2560.77,0.00030136,120]
[373553923,1753038972623,480.0,0.00030136,120]
[373553924,1753038973197,381.55217863,0.00030136,120]
[373553925,1753038973625,844.35,0.00030136,120]
[373553926,1753038974983,878.51,0.00030136,120]
[373553927,1753038975042,480.0,0.00030136,120]
[373553928,1753038975439,480.0,0.00030136,120]
[373553929,1753038976319,4862.49,0.00030136,120]
[373553930,1753038976369,480.0,0.00030136,120]
[373553931,1753038976725,2806.65,0.00030136,120]
[373553932,1753038977252,480.0,0.00030136,120]
[373553933,1753038977341,480.0,0.00030136,120]
[373553934,1753038978100,626.97,0.00030136,120]
[373553935,1753038978504,480.0,0.00030136,120]
[373553936,1753038978681,792.59,0.00030136,120]
[373553937,1753038978778,2524.52,0.00030136,120]
[373553938,1753038979618,480.0,0.00030136,120]
[373553939,1753038979780,480.0,0.00030136,120]
[373553940,1753038980893,500.0,0.00030136,120]
[373553941,1753038981126,500.0,0.00030136,120]
[373553942,1753038981165,2580.78,0.00030136,120]
[373553943,1753038981306,2840.27,0.00030136,120]
[373553944,1753038981356,172.82053995,0.00030136,120]
[373553945,1753038981402,2879.0,0.00030136,120]
[373553946,1753038981464,460.0,0.00030136,120]
[373553947,1753038981945,540.86,0.00030136,120]
[373553948,1753038982688,173.81976169,0.00030136,120]
[373553949,1753038982893,408.61546388,0.00030136,120]
[373553950,1753038983211,1746.52,0.00030136,120]
[373553951,1753038983339,1810.72,0.00030136,120]
[373553952,1753038983434,434.54218082,0.00030136,120]
[373553953,1753038984321,1158.69,0.00030136,120]
[373553954,1753038984862,424.46519257,0.00030136,120]
[373553956,1753038987223,480.0,0.00030136,120]
[373553957,1753038987450,1629.24,0.00030136,120]
[373553958,1753038988862,480.0,0.00030136,120]
[373553959,1753038988906,49868.52,0.00030136,120]
[373553960,1753038989983,480.0,0.00030136,120]
[373553961,1753038990017,480.0,0.00030136,120]
[373553962,1753038991260,3446.78,0.00030136,120]
[373553963,1753038991479,480.0,0.00030136,120]
[373553964,1753038991518,480.0,0.00030136,120]
[373553965,1753038991552,480.0,0.00030136,120]
[373553966,1753038991873,480.0,0.00030136,120]
[373553967,1753038992227,480.0,0.00030136,120]
[373553968,1753038992262,547.67,0.00030136,120]
[373553969,1753038992296,1678.57,0.00030136,120]
[373553970,1753038992758,3755.88,0.00030136,120]
[373553971,1753038993003,480.0,0.00030136,120]
[373553972,1753038993744,480.0,0.00030136,120]
[373553973,1753038993998,480.0,0.00030136,120]
[373553974,1753038995332,694.66,0.00030136,120]
[373553975,1753038997665,480.0,0.00030136,120]
[373553976,1753038998313,1723.69,0.00030136,120]
[373553977,1753038998385,1516.07,0.00030136,120]
[373553978,1753038998426,480.0,0.00030136,120]
[373553979,1753038998799,1104.58,0.00030136,120]
[373553980,1753038999483,555.05,0.00030136,120]
[373553981,1753038999515,4419.21,0.00030136,120]
[373553982,1753039000037,480.0,0.00030136,120]
[373553983,1753039000083,425.69386556,0.00030136,120]
[373553984,1753039000186,480.0,0.00030136,120]
[373553985,1753039000818,384.00073307,0.00030136,120]
[373553986,1753039001895,1397.4,0.00030136,120]
[373553987,1753039002140,480.0,0.00030136,120]
[373553988,1753039002604,186.39807367,0.00030136,120]
[373553989,1753039002639,1289.89,0.00030136,120]
[373553990,1753039002681,263.64688602,0.00030136,120]
[373553991,1753039002825,1645.82,0.00030136,120]
[373553992,1753039003319,617.07,0.00030136,120]
[373553993,1753039003368,670.06,0.00030136,120]
[373553994,1753039003670,4741.24,0.00030136,120]
[373553995,1753039004146,4368.45,0.00030136,120]
[373553996,1753039004195,480.0,0.00030136,120]
[373553997,1753039005010,1646.42,0.00030136,120]
[373553998,1753039005178,586.97,0.00030136,120]
[373553999,1753039006535,480.0,0.00030136,120]
[373554000,1753039006649,7901.83,0.00030136,120]
[373554001,1753039006974,766.74,0.00030136,120]
[373554002,1753039007721,480.0,0.00030136,120]
[373554003,1753039008276,480.0,0.00030136,120]
[373554004,1753039008784,480.0,0.00030136,120]
[373554005,1753039008828,445.85325148,0.00030136,120]
[373554006,1753039010608,480.0,0.00030136,120]
[373554007,1753039011294,1286.72,0.00030136,120]
[373554008,1753039011672,480.0,0.00030136,120]
[373554009,1753039011726,1312.78,0.00030136,120]
[373554010,1753039011869,480.0,0.00030136,120]
[373554011,1753039012023,9870.93,0.00030136,120]
[373554012,1753039012994,2454.08,0.00030136,120]
[373554013,1753039013340,462.69518226,0.00030136,120]
[373554014,1753039013384,480.0,0.00030136,120]
[373554015,1753039013423,2855.56,0.00030136,120]
[373554016,1753039013762,413.7928431,0.00030136,120]
[373554017,1753039015107,1010.11,0.00030136,120]
[373554018,1753039015208,480.0,0.00030136,120]
[373554019,1753039015291,480.0,0.00030136,120]
[373554020,1753039015544,2173.62,0.00030136,120]
[373554021,1753039015594,480.0,0.00030136,120]
[373554022,1753039016309,1370.08,0.00030136,120]
[373554023,1753039017292,326.99169503,0.00030136,120]
[373554024,1753039017361,405.65273101,0.00030136,120]
[373554025,1753039018045,350.47797877,0.00030136,120]
[373554026,1753039018240,3612.78,0.00030136,120]
[373554027,1753039018659,480.0,0.00030136,120]
[373554028,1753039018790,480.0,0.00030136,120]
[373554029,1753039018918,562.41,0.00030136,120]
[373554030,1753039019728,1867.38,0.00030136,120]
[373554031,1753039019770,2759.04,0.00030136,120]
[373554032,1753039019807,480.0,0.00030136,120]
[373554033,1753039019860,480.0,0.00030136,120]
[373554034,1753039020027,480.0,0.00030136,120]
[373554035,1753039021493,480.0,0.00030136,120]
[373554036,1753039022478,300.0,0.00030136,120]
[373554037,1753039024482,480.0,0.00030136,120]
[373554038,1753039025167,480.0,0.00030136,120]
[373554039,1753039025243,480.0,0.00030136,120]
[373554040,1753039025286,480.0,0.00030136,120]
[373554041,1753039025758,618.07,0.00030136,120]
[373554042,1753039025880,5336.19,0.00030136,120]
[373554043,1753039027720,480.0,0.00030136,120]
[373554044,1753039028252,480.0,0.00030136,120]
[373554045,1753039028307,480.0,0.00030136,120]
[373554046,1753039028409,1612.41,0.00030136,120]
[373554047,1753039028729,2619.04,0.00030136,120]
[373554048,1753039028987,505.38,0.00030136,120]
[373554049,1753039029822,501.41,0.00030136,120]
[373554050,1753039030030,2095.85,0.00030136,120]
[373554051,1753039030508,325.73651747,0.00030136,120]
[373554052,1753039031936,2663.43,0.00030136,120]
[373554053,1753039032715,956.69,0.00030136,120]
[373554054,1753039032991,480.0,0.00030136,120]
[373554055,1753039033234,5925.84,0.00030136,120]
[373554056,1753039035225,766.6,0.00030136,120]
[373554057,1753039035361,480.0,0.00030136,120]
[373554058,1753039036297,1767.06,0.00030136,120]
[373554059,1753039036788,480.0,0.00030136,120]
[373554060,1753039036822,480.0,0.00030136,120]
[373554061,1753039036855,480.0,0.00030136,120]
[373554062,1753039036914,480.0,0.00030136,120]
[373554063,1753039037683,1601.94,0.00030136,120]
[373554064,1753039037737,3599.39,0.00030136,120]
[373554065,1753039037824,480.0,0.00030136,120]
[373554066,1753039038231,480.0,0.00030136,120]
[373554067,1753039038983,480.0,0.00030136,120]
[373554068,1753039039034,1717.31,0.00030136,120]
[373554069,1753039040133,480.0,0.00030136,120]
[373554070,1753039040347,480.0,0.00030136,120]
[373554071,1753039041232,2789.91,0.00030136,120]
[373554072,1753039042701,480.0,0.00030136,120]
[373554073,1753039042842,480.0,0.00030136,120]
[373554074,1753039044520,480.0,0.00030136,120]
[373554075,1753039044577,480.0,0.00030136,120]
[373554076,1753039044614,593.25,0.00030136,120]
[373554077,1753039044815,440.0,0.00030136,120]
[373554078,1753039045146,1236.15,0.00030136,120]
[373554079,1753039045839,480.0,0.00030136,120]
[373554080,1753039046681,480.0,0.00030136,120]
[373554081,1753039046827,480.0,0.00030136,120]
[373554082,1753039047285,480.0,0.00030136,120]
[373554083,1753039047417,480.0,0.00030136,120]
[373554084,1753039048433,4972.92,0.00030136,120]
[373554085,1753039048485,2405.6,0.00030136,120]
[373554086,1753039049599,480.0,0.00030136,120]
[373554087,1753039049849,455.0122867,0.00030136,120]
[373554088,1753039050570,480.0,0.00030136,120]
[373554089,1753039050713,480.0,0.00030136,120]
[373554090,1753039050790,480.0,0.00030136,120]
[373554091,1753039051874,386.04440061,0.00030136,120]
[373554092,1753039052839,440.0,0.00030136,120]
[373554093,1753039053179,1748.14,0.00030136,120]
[373554094,1753039053224,1908.46,0.00030136,120]
[373554095,1753039053292,480.0,0.00030136,120]
[373554096,1753039054656,480.0,0.00030136,120]
[373554097,1753039055089,641.0,0.00030136,120]
[373554098,1753039055230,480.0,0.00030136,120]
[373554099,1753039055371,480.0,0.00030136,120]
[373554100,1753039055578,1366.8,0.00030136,120]
[373554101,1753039056083,2242.21,0.00030136,120]
[373554102,1753039056592,3290.02,0.00030136,120]
[373554103,1753039057560,2856.0,0.00030136,120]
[373554104,1753039057783,480.0,0.00030136,120]
[373554105,1753039057819,1122.85,0.00030136,120]
[373554106,1753039058337,480.0,0.00030136,120]
[373554107,1753039058783,480.0,0.00030136,120]
[373554108,1753039059057,3227.09,0.00030136,120]
[373554109,1753039059626,1320.75,0.00030136,120]
[373554110,1753039060788,480.0,0.00030136,120]
[373554111,1753039060824,2513.44,0.00030136,120]
[373554112,1753039063813,6397.67,0.00030136,120]
[373554113,1753039064616,460.0,0.00030136,120]
[373554114,1753039064764,480.0,0.00030136,120]
[373554115,1753039065163,480.0,0.00030136,120]
[373554116,1753039066078,480.0,0.00030136,120]
[373554117,1753039066210,605.35,0.00030136,120]
[373554118,1753039066252,480.0,0.00030136,120]
[373554119,1753039066302,480.0,0.00030136,120]
[373554120,1753039067482,828.51,0.00030136,120]
[373554121,1753039068024,3025.98,0.00030136,120]
[373554122,1753039068528,3193.89,0.00030136,120]
[373554123,1753039068592,480.0,0.00030136,120]
[373554124,1753039068855,641.74,0.00030136,120]
[373554125,1753039069102,480.0,0.00030136,120]
[373554126,1753039069558,4943.98,0.00030136,120]
[373554127,1753039071729,480.0,0.00030136,120]
[373554128,1753039071829,480.0,0.00030136,120]
[373554129,1753039072806,2552.46,0.00030136,120]
[373554130,1753039073049,480.0,0.00030136,120]
[373554131,1753039075164,481.98,0.00030136,120]
[373554132,1753039075516,916.82,0.00030136,120]
[373554133,1753039075568,480.0,0.00030136,120]
[373554134,1753039075769,1622.67,0.00030136,120]
[373554135,1753039075914,480.0,0.00030136,120]
[373554136,1753039075954,596.36,0.00030136,120]
[373554137,1753039076137,480.0,0.00030136,120]
[373554138,1753039076204,480.0,0.00030136,120]
[373554139,1753039076756,480.0,0.00030136,120]
[373554140,1753039077693,1060.73,0.00030136,120]
[373554141,1753039077939,2913.37,0.00030136,120]
[373554142,1753039079015,531.1,0.00030136,120]
[373554143,1753039079088,480.0,0.00030136,120]
[373554144,1753039079566,480.0,0.00030136,120]
[373554145,1753039079738,480.0,0.00030136,120]
[373554146,1753039079961,1397.73,0.00030136,120]
[373554147,1753039080004,480.0,0.00030136,120]
[373554148,1753039080601,480.0,0.00030136,120]
[373554149,1753039081483,480.0,0.00030136,120]
[373554150,1753039085190,480.0,0.00030136,120]
[373554151,1753039085479,1233.33,0.00030136,120]
[373554152,1753039085519,480.0,0.00030136,120]
[373554153,1753039086648,480.0,0.00030136,120]
[373554154,1753039086878,480.0,0.00030136,120]
[373554155,1753039087020,5247.55,0.00030136,120]
[373554156,1753039087868,480.0,0.00030136,120]
[373554157,1753039087911,1848.1,0.00030136,120]
[373554158,1753039088124,2436.17,0.00030136,120]
[373554159,1753039088165,480.0,0.00030136,120]
[373554160,1753039089286,480.0,0.00030136,120]
[373554161,1753039089321,506.58,0.00030136,120]
[373554162,1753039089469,480.0,0.00030136,120]
[373554163,1753039091957,480.0,0.00030136,120]
[373554164,1753039092037,2673.66,0.00030136,120]
[373554165,1753039092287,480.0,0.00030136,120]
[373554166,1753039092342,480.0,0.00030136,120]
[373554167,1753039093437,480.0,0.00030136,120]
[373554168,1753039093666,480.0,0.00030136,120]
[373554169,1753039094429,1828.94,0.00030136,120]
[373554170,1753039095194,480.0,0.00030136,120]
[373554171,1753039096668,1776.0,0.00030136,120]
[373554172,1753039097149,1671.06,0.00030136,120]
[373554173,1753039097343,1139.07,0.00030136,120]
[373554174,1753039098380,781.91,0.00030136,120]
[373554175,1753039098676,480.0,0.00030136,120]
[373554176,1753039099277,480.0,0.00030136,120]
[373554177,1753039099602,480.0,0.00030136,120]
[373554178,1753039099792,4801.61,0.00030136,120]
[373554179,1753039100454,480.0,0.00030136,120]
[373554180,1753039100662,427.80022171,0.00030136,120]
[373554181,1753039100840,480.0,0.00030136,120]
[373554182,1753039100949,4555.35,0.00030136,120]
[373554183,1753039101072,480.0,0.00030136,120]
[373554184,1753039101849,906.12,0.00030136,120]
[373554185,1753039102097,8561.4,0.00030136,120]
[373554186,1753039102140,302.29195904,0.00030136,120]
[373554187,1753039102516,480.0,0.00030136,120]
[373554188,1753039102731,480.0,0.00030136,120]
[373554189,1753039103395,2121.07,0.00030136,120]
[373554190,1753039104697,563.05,0.00030136,120]
[373554191,1753039105836,480.0,0.00030136,120]
[373554192,1753039105914,6954.67,0.00030136,120]
[373554193,1753039106766,480.0,0.00030136,120]
[373554194,1753039107613,582.69,0.00030136,120]
[373554195,1753039108364,480.0,0.00030136,120]
[373554196,1753039108832,388.551478,0.00030136,120]
[373554197,1753039109467,1294.28,0.00030136,120]
[373554198,1753039110356,480.0,0.00030136,120]
[373554199,1753039110390,480.0,0.00030136,120]
[373554200,1753039110426,5217.09,0.00030136,120]
[373554201,1753039112061,2176.94,0.00030136,120]
[373554202,1753039112797,480.0,0.00030136,120]
[373554203,1753039113914,1989.77,0.00030136,120]
[373554204,1753039113949,4737.98,0.00030136,120]
[373554205,1753039114011,500.0,0.00030136,120]
[373554206,1753039114133,480.0,0.00030136,120]
[373554207,1753039114442,4236.26,0.00030136,120]
[373554208,1753039114904,4235.08,0.00030136,120]
[373554209,1753039114972,785.28,0.00030136,120]
[373554210,1753039115119,816.64,0.00030136,120]
[373554211,1753039115392,480.0,0.00030136,120]
[373554212,1753039116352,384.04614848,0.00030136,120]
[373554213,1753039117658,480.0,0.00030136,120]
[373554214,1753039118122,812.65,0.00030136,120]
[373554215,1753039118674,2115.8,0.00030136,120]
[373554216,1753039118755,480.0,0.00030136,120]
[373554217,1753039119822,480.0,0.00030136,120]
[373554218,1753039120109,480.0,0.00030136,120]
[373554219,1753039120824,1763.9,0.00030136,120]
[373554220,1753039121445,480.0,0.00030136,120]
[373554221,1753039121495,312.63958669,0.00030136,120]
[373554222,1753039122795,635.46,0.00030136,120]
[373554223,1753039123263,480.0,0.00030136,120]
[373554224,1753039123425,1942.86,0.00030136,120]
[373554225,1753039123810,1617.48,0.00030136,120]
[373554226,1753039123860,7233.07,0.00030136,120]
[373554227,1753039124475,480.0,0.00030136,120]
[373554228,1753039125504,480.0,0.00030136,120]
[373554229,1753039125547,3665.19,0.00030136,120]
[373554230,1753039126038,480.0,0.00030136,120]
[373554231,1753039126989,480.0,0.00030136,120]
[373554232,1753039127031,480.0,0.00030136,120]
[373554233,1753039127994,2140.96,0.00030136,120]
[373554236,1753039129512,480.0,0.00030136,120]
[373554237,1753039129889,850.28,0.00030136,120]
[373554238,1753039131100,1902.82,0.00030136,120]
[373554239,1753039131546,480.0,0.00030136,120]
[373554240,1753039131803,3483.3,0.00030136,120]
[373554241,1753039131946,931.0,0.00030136,120]
[373554242,1753039133269,1576.78,0.00030136,120]
[373554243,1753039133586,480.0,0.00030136,120]
[373554244,1753039134240,480.0,0.00030136,120]
[373554245,1753039134509,480.0,0.00030136,120]
[373554246,1753039135068,480.0,0.00030136,120]
[373554247,1753039135104,965.07,0.00030136,120]
[373554248,1753039135186,480.0,0.00030136,120]
[373554249,1753039135765,1545.13,0.00030136,120]
[373554250,1753039135974,627.11,0.00030136,120]
[373554251,1753039137346,506.14,0.00030136,120]
[373554252,1753039137482,480.0,0.00030136,120]
[373554253,1753039138678,6547.17,0.00030136,120]
[373554254,1753039139060,440.0,0.00030136,120]
[373554255,1753039139998,480.0,0.00030136,120]
[373554256,1753039140444,480.0,0.00030136,120]
[373554257,1753039140630,480.0,0.00030136,120]
[373554258,1753039140967,678.52,0.00030136,120]
[373554259,1753039141263,480.0,0.00030136,120]
[373554260,1753039141320,961.65,0.00030136,120]
[373554261,1753039142664,480.0,0.00030136,120]
[373554262,1753039142773,1906.87,0.00030136,120]
[373554263,1753039143289,480.0,0.00030136,120]
[373554264,1753039144171,480.0,0.00030136,120]
[373554265,1753039144295,2008.53,0.00030136,120]
[373554266,1753039145273,480.0,0.00030136,120]
[373554267,1753039145581,1116.63,0.00030136,120]
[373554268,1753039145792,480.0,0.00030136,120]
[373554269,1753039146246,480.0,0.00030136,120]
[373554270,1753039146288,3562.25,0.00030136,120]
[373554271,1753039148536,480.0,0.00030136,120]
[373554272,1753039148679,4601.54,0.00030136,120]
[373554273,1753039148715,1240.73,0.00030136,120]
[373554274,1753039150228,480.0,0.00030136,120]
[373554276,1753039151663,9836.1,0.00030136,120]
[373554277,1753039153001,480.0,0.00030136,120]
[373554278,1753039153260,480.0,0.00030136,120]
[373554279,1753039153300,974.14,0.00030136,120]
[373554280,1753039154324,7761.9,0.00030136,120]
[373554281,1753039154400,346.20521051,0.00030136,120]
[373554282,1753039155406,2932.31,0.00030136,120]
[373554283,1753039155507,480.0,0.00030136,120]
[373554284,1753039156173,480.0,0.00030136,120]
[373554285,1753039156208,480.0,0.00030136,120]
[373554286,1753039156290,1048.42,0.00030136,120]
[373554287,1753039156974,351.42767985,0.00030136,120]
[373554288,1753039157007,440.0,0.00030136,120]
[373554289,1753039158841,480.0,0.00030136,120]
[373554290,1753039159537,536.34,0.00030136,120]
[373554291,1753039161513,508.49454006,0.00030136,120]
[373554292,1753039162471,480.0,0.00030136,120]
[373554293,1753039162806,1735.27,0.00030136,120]
[373554294,1753039163550,2662.13,0.00030136,120]
[373554295,1753039163614,386.45730402,0.00030136,120]
[373554296,1753039163962,2305.37,0.00030136,120]
[373554297,1753039164114,480.0,0.00030136,120]
[373554298,1753039165385,423.18471184,0.00030136,120]
[373554299,1753039166009,480.0,0.00030136,120]
[373554300,1753039166052,480.0,0.00030136,120]
[373554301,1753039166435,2066.46,0.00030136,120]
[373554302,1753039166476,8211.12,0.00030136,120]
[373554303,1753039167523,7239.65,0.00030136,120]
[373554304,1753039167657,1754.89,0.00030136,120]
[373554305,1753039169368,553.51668558,0.00030136,120]
[373554306,1753039172208,608.99,0.00030136,120]
[373554307,1753039172266,1315.33,0.00030136,120]
[373554308,1753039172305,1651.69,0.00030136,120]
[373554309,1753039172417,480.0,0.00030136,120]
[373554310,1753039172455,480.0,0.00030136,120]
[373554311,1753039172739,466.95146403,0.00030136,120]
[373554312,1753039173254,3050.48,0.00030136,120]
[373554313,1753039173420,2214.67,0.00030136,120]
[373554314,1753039173936,480.0,0.00030136,120]
[373554316,1753039174947,848.06,0.00030136,120]
[373554317,1753039177074,803.85,0.00030136,120]
[373554318,1753039177345,5499.24,0.00030136,120]
[373554319,1753039178270,460.0,0.00030136,120]
[373554320,1753039178798,1265.05,0.00030136,120]
[373554321,1753039179644,9426.26,0.00030136,120]
[373554322,1753039179833,480.0,0.00030136,120]
[373554323,1753039180519,480.0,0.00030136,120]
[373554324,1753039180916,4186.43,0.00030136,120]
[373554325,1753039181530,480.0,0.00030136,120]
[373554326,1753039181980,480.0,0.00030136,120]
[373554327,1753039182677,276.24,0.00024755,120]
[373554328,1753039182917,276.24,0.00027006,120]
[373554329,1753039183084,480.0,0.00030136,120]
[373554330,1753039183122,480.0,0.00030136,120]
[373554331,1753039183427,611.76,0.00030136,120]
[373554332,1753039184279,480.0,0.00030136,120]
[373554333,1753039184381,480.0,0.00030136,120]
[373554334,1753039184518,480.0,0.00030136,120]
[373554335,1753039185262,480.0,0.00030136,120]
[373554336,1753039187645,549.57,0.00030136,120]
[373554337,1753039188008,480.0,0.00030136,120]
[373554338,1753039188199,480.0,0.00030136,120]
[373554339,1753039188792,480.0,0.00030136,120]
[373554340,1753039188840,480.0,0.00030136,120]
[373554341,1753039190258,2736.58,0.00030136,120]
[373554342,1753039190313,1377.64,0.00030136,120]
[373554343,1753039190370,873.51,0.00030136,120]
[373554344,1753039190408,1379.12,0.00030136,120]